bitfinex-derivatives/quotes_ETHF0:USTF0_20210109
["timestamp","ask_amount","ask_price","bid_price","bid_amount"]
[1610166355067,5.65179,1218.8,1218.7,50.0]
[1610166355270,4.00959,1218.8,1218.7,50.0]
[1610166356271,5.99479,1218.8,1218.7,50.0]
[1610166357972,53.10509,1218.8,1218.7,50.0]
[1610166359177,5.99479,1218.8,1218.7,50.0]
[1610166368081,5.99479,1218.8,1218.7,101.0998]
[1610166368281,4.00959,1218.8,1218.7,101.0998]
[1610166372185,4.00959,1218.8,1218.7,50.0]
[1610166380091,4.00959,1218.8,1218.7,108.6825]
[1610166380491,4.00959,1218.8,1218.7,50.0]
[1610166386703,4.00959,1218.8,1218.7,103.4873]
[1610166388308,4.00959,1218.8,1218.7,50.0]
[1610166402328,35.83069,1218.8,1218.7,50.0]
[1610166409936,5.83069,1218.8,1218.7,50.0]
[1610166415140,35.83069,1218.8,1218.7,50.0]
[1610166415340,103.80509,1218.8,1218.7,50.0]
[1610166419744,73.80509,1218.8,1218.7,50.0]
[1610166419947,5.83069,1218.8,1218.7,50.0]
[1610166420546,35.83069,1218.8,1218.7,50.0]
[1610166422250,45.65489,1218.8,1218.7,50.0]
[1610166423452,35.83069,1218.8,1218.7,50.0]
[1610166423853,90.46119122,1218.8,1218.7,50.0]
[1610166424253,56.76890654,1218.8,1218.7,50.0]
[1610166424452,64.80255638,1218.8,1218.7,50.0]
[1610166424953,56.76890654,1218.8,1218.7,50.0]
[1610166425556,43.86418093,1218.8,1218.7,50.0]
[1610166426059,56.76659575,1218.8,1218.7,50.0]
[1610166426459,43.86418093,1218.8,1218.7,50.0]
[1610166427461,90.46470556,1218.8,1218.7,50.0]
[1610166429064,56.7700268,1218.8,1218.7,50.0]
[1610166429462,64.80380045,1218.8,1218.7,50.0]
[1610166429862,56.7700268,1218.8,1218.7,50.0]
[1610166431566,43.86447104,1218.8,1218.7,50.0]
[1610166432666,56.75465842,1218.8,1218.7,50.0]
[1610166434670,77.52760576,1218.8,1218.7,50.0]
[1610166434972,35.83069,1218.8,1218.7,50.0]
[1610166436571,5.83069,1218.8,1218.7,50.0]
[1610166437572,35.83069,1218.8,1218.7,50.0]
[1610166445585,77.45543796,1218.8,1218.7,50.0]
[1610166446890,90.32064955,1218.8,1218.7,50.0]
[1610166447287,64.76251209,1218.8,1218.7,50.0]
[1610166450087,64.76251209,1218.8,1218.7,38.9957]
[1610166450687,64.76251209,1218.8,1218.7,26.1272]
[1610166450888,51.8973005,1218.8,1218.7,26.1272]
[1610166451288,43.86399525,1218.8,1218.7,26.1272]
[1610166452090,58.68267915,1218.8,1218.7,26.1272]
[1610166452492,43.86399525,1218.8,1218.7,26.1272]
[1610166452693,51.89934539,1218.8,1218.7,26.1272]
[1610166453092,50.73284914,1218.8,1218.7,26.1272]
[1610166453493,58.76857219,1218.8,1218.7,12.1694]
[1610166453692,50.73284914,1218.8,1218.7,12.1694]
[1610166454093,58.76872743,1218.8,1217.9,50.8957]
[1610166454294,51.6985,1218.7,1217.9,50.8957]
[1610166454494,51.6985,1218.7,1218.0,50.0]
[1610166454694,41.48901752,1218.3,1218.0,50.0]
[1610166454896,41.48901752,1218.3,1218.1,50.0]
[1610166455095,30.0,1218.2,1218.1,50.0]
[1610166455295,96.907,1218.2,1218.0,50.0]
[1610166455496,96.907,1218.2,1217.5,65.6457]
[1610166455695,96.907,1218.2,1218.1,50.0]
[1610166455895,100.91659,1218.2,1217.6,50.0]
[1610166456095,100.91659,1218.2,1218.1,50.0]
[1610166456495,100.91659,1218.2,1217.7,50.0]
[1610166457798,100.91659,1218.2,1217.5,65.6457]
[1610166457799,66.907,1218.2,1218.1,50.0]
[1610166458198,66.907,1218.2,1217.8,50.0]
[1610166458398,1.8787,1218.2,1218.1,50.0]
[1610166458599,57.1568,1218.1,1217.6,50.0]
[1610166458798,57.1568,1218.1,1217.3,65.1018]
[1610166459198,57.1568,1218.1,1217.7,50.0]
[1610166459398,57.1568,1218.1,1217.3,65.1018]
[1610166459698,57.1568,1218.1,1217.8,50.0]
[1610166459899,4.00959,1217.9,1217.3,65.1018]
[1610166460298,4.00959,1217.9,1217.8,50.0]
[1610166460701,6.687,1217.8,1217.3,65.1018]
[1610166460899,6.687,1217.8,1217.6,50.0]
[1610166461199,6.687,1217.8,1217.4,50.0]
[1610166461399,6.687,1217.8,1217.3,65.1018]
[1610166461600,6.687,1217.8,1217.7,50.0]
[1610166461799,6.687,1217.8,1217.3,65.1018]
[1610166461999,6.687,1217.8,1217.6,50.0]
[1610166462402,6.687,1217.8,1217.3,65.1018]
[1610166462601,6.687,1217.8,1217.7,50.0]
[1610166462901,6.687,1217.8,1217.4,50.0]
[1610166463301,6.687,1217.8,1217.7,50.0]
[1610166463502,6.687,1217.8,1217.4,50.0]
[1610166463700,6.687,1217.8,1217.7,50.0]
[1610166465203,36.61839,1217.9,1217.7,50.0]
[1610166465606,36.61839,1217.9,1217.8,50.0]
[1610166466008,52.7465,1217.8,1216.9,60.5069]
[1610166466408,82.7465,1217.8,1216.9,60.5069]
[1610166466809,82.7465,1217.8,1217.0,50.0]
[1610166467209,82.7465,1217.8,1217.1,50.0]
[1610166467409,82.7465,1217.8,1217.0,50.0]
[1610166467810,82.7465,1217.8,1217.2,50.0]
[1610166468012,82.7465,1217.8,1217.0,50.0]
[1610166468211,82.7465,1217.8,1217.3,50.0]
[1610166468512,82.7465,1217.8,1217.1,50.0]
[1610166469412,82.7465,1217.8,1217.4,50.0]
[1610166469614,82.7465,1217.8,1217.2,50.0]
[1610166469814,82.7465,1217.8,1217.0,50.0]
[1610166470014,4.00959,1217.1,1217.0,50.0]
[1610166472619,65.98449,1217.1,1217.0,50.0]
[1610166472818,4.00959,1217.1,1217.0,50.0]
[1610166473417,34.00959,1217.1,1217.0,50.0]
[1610166474621,4.00959,1217.1,1217.0,50.0]
[1610166475222,34.00959,1217.1,1217.0,50.0]
[1610166475621,4.00959,1217.1,1217.0,50.0]
[1610166481125,34.00959,1217.1,1217.0,50.0]
[1610166482126,4.00959,1217.1,1217.0,50.0]
[1610166484032,34.00959,1217.1,1217.0,50.0]
[1610166484231,4.00959,1217.1,1217.0,50.0]
[1610166501251,4.00959,1217.1,1217.0,100.8051]
[1610166502254,4.00959,1217.1,1217.0,102.6808]
[1610166506055,4.00959,1217.1,1217.0,51.8757]
[1610166514062,4.00959,1217.1,1217.0,50.0]
[1610166515766,65.56569,1217.1,1217.0,50.0]
[1610166517868,4.00959,1217.1,1217.0,50.0]
[1610166531886,44.87123748,1217.1,1217.0,50.0]
[1610166532187,26.86004518,1217.1,1217.0,50.0]
[1610166532386,4.00959,1217.1,1217.0,50.0]
[1610166534586,40.86762442,1217.2,1217.0,50.0]
[1610166534787,40.86762442,1217.2,1217.1,50.0]
[1610166535187,44.87721442,1217.2,1217.1,50.0]
[1610166535388,44.87721442,1217.2,1216.7,50.0]
[1610166535589,40.86762442,1217.2,1217.1,50.0]
[1610166535787,40.86762442,1217.2,1216.8,50.0]
[1610166535987,40.86762442,1217.2,1217.1,50.0]
[1610166536187,40.86762442,1217.2,1216.9,50.0]
[1610166536388,40.86762442,1217.2,1216.7,50.0]
[1610166536588,40.86762442,1217.2,1217.0,50.0]
[1610166536788,40.86762442,1217.2,1216.8,50.0]
[1610166536988,40.86762442,1217.2,1217.1,50.0]
[1610166537190,44.87721442,1217.2,1217.1,50.0]
[1610166537391,7.2912,1217.1,1216.9,50.0]
[1610166537590,7.2912,1217.1,1216.6,47.6882]
[1610166537790,48.11468337,1217.1,1217.0,50.0]
[1610166537993,48.11468337,1217.1,1216.7,50.0]
[1610166538193,48.11468337,1217.1,1217.0,50.0]
[1610166538393,48.11468337,1217.1,1216.7,50.0]
[1610166538793,48.11468337,1217.1,1217.0,50.0]
[1610166538993,7.2912,1217.1,1216.8,50.0]
[1610166539193,7.2912,1217.1,1217.0,50.0]
[1610166539392,7.2912,1217.1,1216.7,50.0]
[1610166539594,7.2912,1217.1,1217.0,50.0]
[1610166541794,11.30079,1217.1,1217.0,50.0]
[1610166541995,52.09042387,1217.1,1217.0,50.0]
[1610166543302,44.79922387,1217.1,1217.0,50.0]
[1610166543701,7.02691732,1217.1,1217.0,50.0]
[1610166544704,19.64619136,1217.1,1217.0,50.0]
[1610166545105,26.58192031,1217.1,1217.0,50.0]
[1610166545705,28.69247364,1217.1,1217.0,50.0]
[1610166546104,28.24644985,1217.1,1217.0,50.0]
[1610166546304,26.59214985,1217.1,1217.0,50.0]
[1610166547304,28.22934985,1217.1,1217.0,50.0]
[1610166548105,26.59214985,1217.1,1217.0,50.0]
[1610166548905,85.63584985,1217.1,1217.0,50.0]
[1610166549306,94.70236011,1217.1,1217.0,50.0]
[1610166549905,98.71195011,1217.1,1217.0,50.0]
[1610166552709,39.66825011,1217.1,1217.0,50.0]
[1610166552909,34.38502116,1217.1,1217.0,50.0]
[1610166553108,7.02691732,1217.1,1216.9,50.0]
[1610166553309,12.0565633,1217.1,1216.9,50.0]
[1610166553508,42.0565633,1217.1,1216.0,2.1698]
[1610166553708,197.49948653,1217.1,1216.9,50.0]
[1610166553908,30.0,1216.8,1216.4,50.0]
[1610166554111,30.0,1216.8,1215.8,1.8861]
[1610166554112,31.8609,1216.8,1216.1,50.0]
[1610166554310,31.8609,1216.8,1216.5,50.0]
[1610166554512,20.68404214,1216.7,1216.5,50.0]
[1610166554712,55.7401,1216.1,1215.8,1.8861]
[1610166555112,55.7401,1216.1,1215.9,50.0]
[1610166555312,40.77699075,1216.0,1215.6,50.0]
[1610166555712,7.2817,1215.6,1215.2,65.5539]
[1610166555911,4.00959,1215.3,1214.8,2.1107]
[1610166556511,4.00959,1215.3,1214.9,50.0]
[1610166556912,4.00959,1215.3,1215.1,62.9178]
[1610166557713,4.00959,1215.3,1215.2,50.0]
[1610166583548,4.00959,1215.3,1215.2,80.0]
[1610166584953,1.8609,1216.8,1215.2,80.0]
[1610166584954,1.8609,1216.8,1215.2,81.25669426]
[1610166585157,40.74024145,1217.2,1215.2,81.75947857]
[1610166585354,40.74024145,1217.2,1216.2,62.7012]
[1610166585555,42.54869829,1217.3,1216.2,62.7012]
[1610166585754,42.54869829,1217.3,1216.3,50.0]
[1610166585954,1.7941,1217.3,1216.8,61.9507]
[1610166586154,40.76750984,1217.4,1216.8,61.9507]
[1610166586155,3.73257819,1217.4,1216.8,61.9507]
[1610166586358,4.00959,1216.9,1216.8,61.9507]
[1610166586555,4.00959,1216.9,1216.8,111.9507]
[1610166591759,4.00959,1216.9,1216.8,113.8142]
[1610166597565,4.00959,1216.9,1216.8,51.8635]
[1610166598668,4.00959,1216.9,1216.8,81.8635]
[1610166600869,4.00959,1216.9,1216.8,51.8635]
[1610166601470,4.00959,1216.9,1216.8,81.8635]
[1610166602470,4.00959,1216.9,1216.8,51.8635]
[1610166621192,4.00959,1216.9,1216.8,50.0]
[1610166621392,61.61019,1216.9,1216.8,50.0]
[1610166624196,47.32949906,1216.9,1216.8,50.0]
[1610166624397,9.42530958,1216.9,1216.8,50.0]
[1610166624596,9.42530958,1216.9,1215.6,2.703]
[1610166624597,63.1519,1216.8,1216.5,50.0]
[1610166624798,63.1519,1216.8,1216.4,50.0]
[1610166625198,16.09649311,1216.7,1216.0,55.5996]
[1610166625397,16.09649311,1216.7,1216.2,50.0]
[1610166625598,40.87909478,1216.5,1216.1,50.0]
[1610166625797,59.236,1216.2,1216.1,50.0]
[1610166625998,59.236,1216.2,1215.5,64.3924]
[1610166626198,62.0083,1216.2,1215.6,50.0]
[1610166626397,4.00959,1215.7,1215.6,50.0]
[1610166626597,4.00959,1215.7,1215.5,64.3924]
[1610166626797,4.00959,1215.7,1215.6,50.0]
[1610166627199,4.00959,1215.7,1215.4,2.7828]
[1610166627399,4.00959,1215.7,1215.6,112.8367]
[1610166627599,4.00959,1215.7,1215.6,62.8367]
[1610166627798,4.00959,1215.7,1215.5,50.0]
[1610166627998,4.00959,1215.7,1215.6,50.0]
[1610166628397,4.00959,1215.7,1215.5,50.0]
[1610166628600,4.00959,1215.7,1215.6,50.0]
[1610166628999,4.00959,1215.7,1215.5,50.0]
[1610166629201,4.00959,1215.7,1215.6,50.0]
[1610166629500,4.00959,1215.7,1215.5,50.0]
[1610166629802,4.00959,1215.7,1215.6,50.0]
[1610166630200,4.00959,1215.7,1215.5,50.0]
[1610166630403,4.00959,1215.7,1215.4,2.7828]
[1610166630601,4.00959,1215.7,1215.6,50.0]
[1610166630801,4.00959,1215.7,1215.5,50.0]
[1610166631003,4.00959,1215.7,1215.6,50.0]
[1610166637013,4.00959,1215.7,1215.6,106.0006]
[1610166641223,4.00959,1215.7,1215.6,50.0]
[1610166642825,13.02279,1215.7,1215.6,50.0]
[1610166644328,4.00959,1215.7,1215.6,50.0]
[1610166657344,4.00959,1215.7,1215.6,97.3747]
[1610166657746,4.00959,1215.7,1215.6,50.0]
[1610166662848,10.77949,1215.7,1215.6,50.0]
[1610166664049,4.00959,1215.7,1215.6,50.0]
[1610166665050,44.79883106,1215.7,1215.6,50.0]
[1610166665250,55.9727,1215.6,1215.4,50.0]
[1610166665450,7.02990635,1215.7,1215.3,50.0]
[1610166665750,40.75109861,1215.4,1215.1,50.0]
[1610166665950,43.58189861,1215.4,1215.2,50.0]
[1610166666155,40.73440007,1215.3,1215.2,50.0]
[1610166666351,40.73440007,1215.3,1214.5,50.0]
[1610166666552,65.563,1215.0,1214.5,50.0]
[1610166666752,4.00959,1214.6,1214.3,50.0]
[1610166666951,4.00959,1214.6,1214.5,68.0277]
[1610166667753,4.00959,1214.6,1214.5,118.0277]
[1610166668152,4.00959,1214.6,1214.5,50.0]
[1610166676555,54.77899,1214.6,1214.5,50.0]
[1610166683863,95.7473755,1214.6,1214.5,50.0]
[1610166686265,44.9779755,1214.6,1214.5,50.0]
[1610166689165,4.00959,1214.6,1214.5,50.0]
[1610166689366,53.63579,1214.6,1214.5,50.0]
[1610166690468,94.60893662,1214.6,1214.5,50.0]
[1610166690869,69.75579224,1214.6,1214.5,50.0]
[1610166694171,71.38109224,1214.6,1214.5,50.0]
[1610166694872,69.75579224,1214.6,1214.5,50.0]
[1610166697877,20.12959224,1214.6,1214.5,50.0]
[1610166698278,45.0640858,1214.6,1214.5,50.0]
[1610166699381,4.00959,1214.6,1214.5,50.0]
[1610166699778,4.00959,1214.6,1214.5,118.533]
[1610166704886,4.00959,1214.6,1214.5,50.0]
[1610166710796,45.02177953,1214.6,1214.5,50.0]
[1610166711697,7.03243092,1214.6,1214.5,50.0]
[1610166713497,19.69798391,1214.6,1214.5,50.0]
[1610166713696,70.97378391,1214.6,1214.5,50.0]
[1610166713897,58.30823092,1214.6,1214.5,50.0]
[1610166714097,59.97353092,1214.6,1214.5,50.0]
[1610166714299,85.73282186,1214.6,1214.5,50.0]
[1610166714598,65.01199697,1214.6,1214.5,50.0]
[1610166714798,63.34669697,1214.6,1214.5,50.0]
[1610166714998,84.0601358,1214.6,1214.5,50.0]
[1610166715298,20.13256616,1214.6,1214.5,50.0]
[1610166715700,8.65543092,1214.6,1214.5,50.0]
[1610166715998,46.48848375,1214.6,1214.5,50.0]
[1610166716699,4.00959,1214.6,1214.5,50.0]
[1610166717803,5.66729,1214.6,1214.5,50.0]
[1610166720005,4.00959,1214.6,1214.5,50.0]
[1610166720406,4.00959,1214.6,1214.5,80.0]
[1610166721006,5.67899,1214.6,1214.5,80.0]
[1610166721408,5.67899,1214.6,1214.5,50.0]
[1610166722106,4.00959,1214.6,1214.5,50.0]
[1610166723307,5.67429,1214.6,1214.5,50.0]
[1610166723708,4.00959,1214.6,1214.5,50.0]
[1610166731018,4.00959,1214.6,1214.5,102.7853]
[1610166732219,4.00959,1214.6,1214.5,50.0]
[1610166736425,4.00959,1214.6,1214.5,58.8485]
[1610166738230,4.00959,1214.6,1214.5,50.0]
[1610166741229,4.00959,1214.6,1214.5,105.8127]
[1610166741630,4.00959,1214.6,1214.5,50.0]
[1610166742030,4.00959,1214.6,1214.5,110.5158]
[1610166752846,4.00959,1214.6,1214.5,50.0]
[1610166755947,4.00959,1214.6,1214.5,80.0]
[1610166756548,4.00959,1214.6,1214.5,81.25772472]
[1610166757749,4.00959,1214.6,1214.5,51.25772472]
[1610166760653,4.00959,1214.6,1214.5,50.0]
[1610166763354,4.00959,1214.6,1214.5,51.25769355]
[1610166763753,4.00959,1214.6,1214.5,81.25769355]
[1610166764354,2.4728,1216.1,1214.5,81.25769355]
[1610166764556,5.938,1216.4,1214.5,81.76075247]
[1610166764755,5.938,1216.4,1215.8,68.3296]
[1610166764955,3.405,1216.4,1215.8,68.3296]
[1610166765154,3.405,1216.4,1215.9,50.0]
[1610166765355,4.00959,1216.0,1215.9,52.7005]
[1610166765553,4.00959,1216.0,1215.9,2.7005]
[1610166765954,4.00959,1216.0,1215.9,52.7005]
[1610166773560,4.00959,1216.0,1215.9,56.71009]
[1610166775263,3.405,1217.2,1215.9,56.71009]
[1610166775464,4.00959,1216.2,1216.0,57.0585]
[1610166775664,4.00959,1216.2,1216.0,107.0585]
[1610166775865,29.0,1217.3,1216.1,50.0]
[1610166776364,29.0,1217.3,1216.2,50.0]
[1610166776565,29.0,1217.3,1216.1,50.0]
[1610166777064,29.0,1217.3,1216.3,50.0]
[1610166777265,29.0,1217.3,1217.0,8.1298]
[1610166777468,4.00959,1217.1,1216.6,4.00959]
[1610166777867,4.00959,1217.1,1216.7,50.0]
[1610166778266,4.00959,1217.1,1216.8,50.0]
[1610166778466,4.00959,1217.1,1216.9,50.0]
[1610166779067,4.00959,1217.1,1216.8,50.0]
[1610166779267,4.00959,1217.1,1217.0,50.0]
[1610166779467,4.00959,1217.1,1216.9,50.0]
[1610166779667,4.00959,1217.1,1217.0,50.0]
[1610166779867,4.00959,1217.1,1217.0,52.2637]
[1610166780067,4.00959,1217.1,1217.0,2.2637]
[1610166780269,4.00959,1217.1,1217.0,102.5327]
[1610166784576,4.00959,1217.1,1217.0,52.2637]
[1610166787174,4.00959,1217.1,1217.0,119.5335]
[1610166812202,4.00959,1217.1,1217.0,52.2637]
[1610166817109,29.0,1217.3,1217.0,52.2637]
[1610166817410,29.0,1217.3,1217.1,50.0]
[1610166817610,29.0,1217.3,1217.2,4.00959]
[1610166817809,29.0,1217.3,1217.2,54.00959]
[1610166819709,33.00959,1217.3,1217.2,54.00959]
[1610166820510,29.0,1217.3,1217.2,54.00959]
[1610166829215,29.0,1217.3,1217.2,55.26456133]
[1610166830717,29.0,1217.3,1217.2,85.26456133]
[1610166834323,12.0608,1217.3,1217.2,85.76175215]
[1610166834521,3.405,1219.1,1217.2,85.76175215]
[1610166834723,55.2752685,1219.3,1218.1,51.7124]
[1610166834921,55.2752685,1219.3,1218.1,54.0593]
[1610166835126,55.2752685,1219.3,1218.2,34.0]
[1610166835328,57.19010767,1219.4,1218.3,50.0]
[1610166835528,57.19010767,1219.4,1218.6,8.2638]
[1610166835729,4.00959,1218.7,1218.6,8.2638]
[1610166836528,4.00959,1218.7,1218.6,58.2638]
[1610166837127,4.00959,1218.7,1218.6,50.0]
[1610166838334,4.00959,1218.7,1218.6,117.0984]
[1610166840532,4.00959,1218.7,1218.6,50.0]
[1610166842134,59.30169253,1218.7,1218.6,50.0]
[1610166844034,59.30169253,1218.7,1218.5,50.0]
[1610166844235,22.09626673,1218.7,1218.6,50.0]
[1610166844634,58.4112,1218.6,1217.9,50.0]
[1610166844833,58.4112,1218.6,1217.8,2.2102]
[1610166845233,55.31052669,1218.4,1218.0,50.0]
[1610166845434,64.64102669,1218.4,1217.6,49.3268]
[1610166845634,55.31463438,1218.3,1218.1,50.0]
[1610166845835,4.00959,1218.2,1217.6,49.3268]
[1610166846036,62.03077555,1218.2,1217.6,49.3268]
[1610166846236,62.03077555,1218.2,1217.7,50.0]
[1610166846643,62.03077555,1218.2,1217.2,50.0]
[1610166846836,110.01887555,1218.2,1217.2,50.0]
[1610166847036,55.3148659,1218.1,1217.8,50.0]
[1610166847238,62.02887569,1218.2,1217.3,50.0]
[1610166847437,62.02887569,1218.2,1217.9,50.0]
[1610166847638,62.02887569,1218.2,1217.4,50.0]
[1610166847837,4.00959,1217.5,1217.0,2.2637]
[1610166848036,4.00959,1217.5,1217.1,56.1905]
[1610166848438,4.00959,1217.5,1217.2,50.0]
[1610166849239,4.00959,1217.5,1217.3,50.0]
[1610166849640,4.00959,1217.5,1217.2,50.0]
[1610166849842,4.00959,1217.3,1217.1,2.1795]
[1610166850040,4.00959,1217.3,1217.2,50.3065]
[1610166850239,4.00959,1217.3,1217.2,100.3065]
[1610166851040,4.00959,1217.3,1217.2,50.0]
[1610166856847,6.332,1218.5,1217.2,80.0]
[1610166857047,6.332,1218.5,1218.1,53.9848]
[1610166857248,6.332,1218.5,1217.1,2.1795]
[1610166857249,6.332,1218.5,1217.7,1.9351]
[1610166857448,2.927,1218.5,1218.2,50.0]
[1610166857648,2.2102,1218.8,1218.3,52.1974]
[1610166857849,4.00959,1218.4,1218.3,52.1974]
[1610166858248,4.00959,1218.4,1218.3,102.1974]
[1610166862553,4.00959,1218.4,1218.3,50.0]
[1610166862753,4.00959,1218.4,1218.3,118.6518]
[1610166867463,4.00959,1218.4,1218.3,98.6518]
[1610166876177,4.00959,1218.4,1218.3,30.0]
[1610166876380,4.00959,1218.4,1218.3,60.0]
[1610166877180,2.6989,1219.4,1218.4,66.3155]
[1610166877379,2.6989,1219.4,1218.4,68.4227]
[1610166877580,2.6989,1219.4,1218.4,118.4227]
[1610166877781,2.6989,1219.4,1218.5,50.0]
[1610166877982,2.6989,1219.4,1218.6,54.00959]
[1610166878382,2.6989,1219.4,1218.6,4.00959]
[1610166878582,2.6989,1219.4,1218.7,50.0]
[1610166878782,2.6989,1219.4,1219.0,7.5503]
[1610166879182,2.6989,1219.4,1219.1,50.0]
[1610166879483,2.6989,1219.4,1219.2,50.0]
[1610166879687,2.6989,1219.4,1219.1,50.0]
[1610166879982,3.405,1219.6,1219.3,50.0]
[1610166880182,3.405,1219.6,1219.3,1.9913]
[1610166880382,3.405,1219.6,1219.3,49.2563]
[1610166880584,3.405,1219.6,1219.4,50.0]
[1610166880985,3.405,1219.6,1219.5,50.0]
[1610166881384,3.405,1219.6,1219.4,50.0]
[1610166881586,5.2412,1220.3,1219.5,50.0]
[1610166881787,5.2412,1220.3,1219.4,50.0]
[1610166881989,3.405,1220.3,1219.6,50.0]
[1610166882189,3.405,1220.3,1219.7,6.9455]
[1610166882389,3.405,1220.3,1219.7,50.0]
[1610166882587,3.405,1220.3,1219.9,46.3008]
[1610166882989,3.405,1220.3,1220.0,50.0]
[1610166883386,3.405,1220.3,1220.1,50.0]
[1610166883787,3.405,1220.3,1220.0,50.0]
[1610166883987,3.405,1220.3,1219.6,2.8773]
[1610166883988,3.405,1220.3,1220.2,50.0]
[1610166884187,6.811,1220.5,1220.1,102.8115]
[1610166884388,6.811,1220.5,1220.2,50.0]
[1610166884788,6.811,1220.5,1220.3,50.0]
[1610166885187,2.7221,1220.6,1220.2,50.0]
[1610166885387,2.7221,1220.6,1220.4,50.0]
[1610166885787,2.7221,1220.6,1220.3,50.0]
[1610166885987,2.7221,1220.6,1220.5,50.0]
[1610166886187,2.7221,1220.6,1219.8,4.00959]
[1610166886188,2.7221,1220.6,1220.4,50.0]
[1610166886387,2.7221,1220.6,1219.8,4.00959]
[1610166886588,2.7221,1220.6,1220.5,50.0]
[1610166886789,2.7221,1220.6,1220.5,9.7529]
[1610166887189,9.3995,1220.8,1220.5,9.7529]
[1610166887390,9.3995,1220.8,1220.5,59.7529]
[1610166887590,9.3995,1220.8,1220.6,50.0]
[1610166887992,9.3995,1220.8,1220.7,50.0]
[1610166888390,3.405,1220.8,1220.6,50.0]
[1610166888591,5.6726,1220.8,1220.7,50.0]
[1610166888794,5.6726,1220.8,1220.6,50.0]
[1610166888991,5.6726,1220.8,1220.7,50.0]
[1610166889394,5.6726,1220.8,1220.6,50.0]
[1610166889796,5.6726,1220.8,1220.7,50.0]
[1610166889994,9.68219,1220.8,1220.7,50.0]
[1610166890194,64.88998166,1220.8,1220.4,50.0]
[1610166890395,12.69055736,1220.8,1220.7,50.0]
[1610166890693,64.89049903,1220.8,1220.5,50.0]
[1610166890893,64.89049903,1220.8,1220.7,50.0]
[1610166891495,12.69063036,1220.8,1220.7,50.0]
[1610166891695,12.69063036,1220.8,1220.6,50.0]
[1610166891896,64.88986153,1220.8,1220.4,111.1732]
[1610166892095,4.00959,1220.5,1220.4,61.1732]
[1610166892496,4.00959,1220.5,1219.6,2.8773]
[1610166892696,4.00959,1220.5,1220.4,50.0]
[1610166895798,3.405,1221.6,1220.5,67.486]
[1610166896201,4.00959,1220.7,1220.4,50.0]
[1610166896399,4.00959,1220.7,1220.5,50.0]
[1610166896800,4.00959,1220.7,1220.4,50.0]
[1610166897001,4.00959,1220.7,1220.6,50.0]
[1610166897202,4.00959,1220.7,1220.6,2.885]
[1610166897400,4.00959,1220.7,1220.6,52.885]
[1610166900609,4.00959,1220.7,1220.6,110.9536]
[1610166902111,4.00959,1220.7,1220.6,114.96319]
[1610166902512,58.55641313,1222.1,1220.6,56.89459]
[1610166902713,58.55641313,1222.1,1220.7,57.6061]
[1610166902915,3.405,1222.1,1220.7,107.6061]
[1610166903114,3.405,1222.1,1220.8,50.0]
[1610166903312,2.1344,1222.2,1220.8,50.0]
[1610166903512,2.1344,1222.2,1220.9,50.0]
[1610166903712,2.1344,1222.2,1220.9,52.4077]
[1610166903911,2.1344,1222.2,1220.9,2.4077]
[1610166904113,4.00959,1221.4,1221.2,4.00959]
[1610166904514,4.00959,1221.4,1221.3,50.0]
[1610166904915,4.00959,1221.4,1221.2,2.6024]
[1610166905115,4.00959,1221.4,1221.3,50.0]
[1610166906615,4.00959,1221.4,1221.3,112.1669]
[1610166911726,4.00959,1221.4,1221.3,50.0]
[1610166920634,59.18181389,1221.4,1221.3,50.0]
[1610166921033,7.01613449,1221.4,1221.3,50.0]
[1610166921233,7.01613449,1221.4,1221.2,50.0]
[1610166921434,22.05471583,1221.4,1221.1,50.0]
[1610166921633,3.00718795,1221.3,1221.1,50.0]
[1610166921836,5.32728795,1221.3,1221.2,50.0]
[1610166922035,5.32728795,1221.3,1220.8,50.0]
[1610166922234,4.00959,1220.9,1219.9,65.6744]
[1610166922436,6.50679,1220.9,1219.5,2.8072]
[1610166922640,75.59142455,1220.9,1220.8,50.0]
[1610166922835,9.51452455,1220.9,1219.6,50.0]
[1610166923038,9.51452455,1220.9,1219.5,2.8072]
[1610166923039,22.54838087,1220.9,1220.8,50.0]
[1610166923235,22.54838087,1220.9,1220.1,65.9279]
[1610166923437,22.54838087,1220.9,1220.8,50.0]
[1610166923438,9.51452455,1220.9,1220.8,50.0]
[1610166923637,11.51976108,1220.9,1220.8,50.0]
[1610166923836,11.51976108,1220.9,1219.5,2.8072]
[1610166924037,6.50679,1220.9,1220.3,50.0]
[1610166924236,4.00959,1220.4,1219.5,2.8072]
[1610166924438,6.78489,1220.4,1220.1,66.2771]
[1610166924836,6.78489,1220.4,1220.2,50.0]
[1610166925438,6.78489,1220.4,1220.3,50.0]
[1610166925842,6.78489,1220.4,1220.2,50.0]
[1610166926040,6.78489,1220.4,1220.3,50.0]
[1610166926439,6.78489,1220.4,1220.2,50.0]
[1610166926642,6.78489,1220.4,1220.3,50.0]
[1610166930850,26.78489,1220.4,1220.3,50.0]